fUSD/lending_fUSD_20250925
["ID","MTS","AMOUNT","RATE_DAILY","PERIOD"]
[387532320,1758759053508,-151.0,0.00021888,2]
[387532321,1758759053518,-151.0,0.00021888,2]
[387532322,1758759053527,-151.0,0.00021888,2]
[387532323,1758759053537,-151.0,0.00021888,2]
[387532324,1758759053547,-151.0,0.00021888,2]
[387532325,1758759053556,-161.64607465,0.00021888,2]
[387532326,1758759053566,-151.0,0.00021888,2]
[387532327,1758759053575,-151.0,0.00021888,2]
[387532328,1758759053585,-278.365621,0.00021888,2]
[387532329,1758759053594,-151.0,0.00021888,2]
[387532330,1758759053604,-433.142181,0.00021888,2]
[387532331,1758759053613,-433.142181,0.00021888,2]
[387532332,1758759053623,-433.142181,0.00021888,2]
[387532333,1758759053632,-433.142181,0.00021888,2]
[387532334,1758759053642,-311.953263,0.00021888,2]
[387532335,1758759053652,-311.953263,0.00021888,2]
[387532336,1758759053661,-311.953263,0.00021888,2]
[387532337,1758759053671,-151.0,0.00021888,2]
[387532338,1758759053680,-311.953263,0.00021888,2]
[387532339,1758759053690,-151.0,0.00021888,2]
[387532340,1758759053700,-151.0,0.00021888,2]
[387532341,1758759053709,-151.0,0.00021888,2]
[387532342,1758759053719,-163.49606,0.00021888,2]
[387532343,1758759053729,-151.0,0.00021888,2]
[387532344,1758759053739,-235.578181,0.00021888,2]
[387532345,1758759053749,-151.0,0.00021888,2]
[387532346,1758759053759,-151.0,0.00021888,2]
[387532347,1758759053768,-235.578181,0.00021888,2]
[387532348,1758759053778,-151.0,0.00021888,2]
[387532349,1758759053787,-151.0,0.00021888,2]
[387532350,1758759053797,-151.0,0.00021888,2]
[387532351,1758759053807,-235.578181,0.00021888,2]
[387532352,1758759053817,-151.0,0.00021888,2]
[387532353,1758759053827,-235.578181,0.00021888,2]
[387532354,1758759053838,-218.459396,0.00021888,2]
[387532355,1758759053848,-151.0,0.00021888,2]
[387532356,1758759053857,-151.0,0.00021888,2]
[387532357,1758759053867,-151.0,0.00021888,2]
[387532358,1758759053876,-151.0,0.00021888,2]
[387532359,1758759053885,-151.0,0.00021888,2]
[387532360,1758759053895,-151.0,0.00021888,2]
[387532361,1758759053905,-151.0,0.00021888,2]
[387532362,1758759053915,-151.0,0.00021888,2]
[387532363,1758759053924,-151.0,0.00021888,2]
[387532364,1758759053934,-436.39953,0.00021888,2]
[387532365,1758759053944,-436.39953,0.00021888,2]
[387532366,1758759053954,-151.0,0.00021888,2]
[387532367,1758759053963,-436.39953,0.00021888,2]
[387532368,1758759053972,-436.39953,0.00021888,2]
[387532369,1758759053982,-151.0,0.00021888,2]
[387532370,1758759053992,-151.0,0.00021888,2]
[387532371,1758759054001,-151.0,0.00021888,2]
[387532372,1758759054011,-151.0,0.00021888,2]
[387532373,1758759054020,-151.0,0.00021888,2]
[387532374,1758759054029,-151.0,0.00021888,2]
[387532375,1758759054041,-151.0,0.00021888,2]
[387532376,1758759054051,-294.196692,0.00021888,2]
[387532377,1758759054063,-151.0,0.00021888,2]
[387532378,1758759054072,-206.001352,0.00021888,2]
[387532379,1758759054083,-151.0,0.00021888,2]
[387532380,1758759054094,-151.0,0.00021888,2]
[387532381,1758759054104,-151.0,0.00021888,2]
[387532382,1758759054113,-206.001352,0.00021888,2]
[387532383,1758759054124,-151.0,0.00021888,2]
[387532384,1758759054137,-151.0,0.00021888,2]
[387532385,1758759054150,-206.001352,0.00021888,2]
[387532386,1758759054160,-265.267548,0.00021888,2]
[387532387,1758759054169,-206.001352,0.00021888,2]
[387532388,1758759054179,-151.0,0.00021888,2]
[387532389,1758759054188,-150.0,0.0002189,4]
[387532390,1758759054198,-150.0,0.0002189,4]
[387532391,1758759054209,-150.0,0.0002189,4]
[387532392,1758759054221,-150.0,0.0002189,4]
[387532393,1758759054233,-600.0,0.000219,7]
[387532394,1758759054245,-16986.3,0.000219,2]
[387532395,1758759054257,-2036.16,0.000219,2]
[387532396,1758759054269,-508.09371,0.000219,2]
[387532397,1758759054281,-1000.0,0.000219,2]
[387532398,1758759054293,-179.3476353,0.000219,4]
[387532399,1758759054305,-3528.67691933,0.000219,2]
[387532400,1758759054317,-383.1,0.00021903,2]
[387532401,1758759054330,-189.1,0.00021904,2]
[387532402,1758759054343,-218.99503538,0.00021907,2]
[387532403,1758759054355,-151.0,0.00021916,2]
[387532404,1758759054367,-151.0,0.00021916,2]
[387532405,1758759054379,-151.0,0.00021916,2]
[387532406,1758759054391,-154.672848,0.00021916,2]
[387532407,1758759054403,-151.0,0.00021916,2]
[387532408,1758759054415,-154.672848,0.00021916,2]
[387532409,1758759054427,-151.0,0.00021916,2]
[387532410,1758759054438,-154.672848,0.00021916,2]
[387532411,1758759054447,-154.672848,0.00021916,2]
[387532412,1758759054458,-152.834666,0.00021916,2]
[387532413,1758759054467,-152.834666,0.00021916,2]
[387532414,1758759054477,-152.834666,0.00021916,2]
[387532415,1758759054486,-152.834666,0.00021916,2]
[387532416,1758759054496,-363.379998,0.00021916,2]
[387532417,1758759054506,-363.379998,0.00021916,2]
[387532418,1758759054517,-363.379998,0.00021916,2]
[387532419,1758759054527,-363.379998,0.00021916,2]
[387532420,1758759054536,-151.0,0.00021916,2]
[387532421,1758759054547,-151.0,0.00021916,2]
[387532422,1758759054558,-151.0,0.00021916,2]
[387532423,1758759054568,-151.0,0.00021916,2]
[387532424,1758759054579,-184.290661,0.00021916,2]
[387532425,1758759054590,-184.290661,0.00021916,2]
[387532426,1758759054600,-151.0,0.00021916,2]
[387532427,1758759054609,-184.290661,0.00021916,2]
[387532428,1758759054618,-151.0,0.00021916,2]
[387532429,1758759054628,-184.290661,0.00021916,2]
[387532430,1758759054638,-151.0,0.00021916,2]
[387532431,1758759054648,-198.141888,0.00021916,2]
[387532432,1758759054658,-218.298186,0.00021916,2]
[387532433,1758759054667,-218.298186,0.00021916,2]
[387532434,1758759054676,-218.298186,0.00021916,2]
[387532435,1758759054686,-218.298186,0.00021916,2]
[387532436,1758759054695,-151.0,0.00021916,2]
[387532437,1758759054705,-151.0,0.00021916,2]
[387532438,1758759054716,-151.0,0.00021916,2]
[387532439,1758759054727,-151.0,0.00021916,2]
[387532440,1758759054740,-151.0,0.00021916,2]
[387532441,1758759054750,-15000.0,0.00021916,2]
[387532442,1758759054759,-300.0,0.00021916,2]
[387532443,1758759054769,-666.0,0.00021916,2]
[387532444,1758759054779,-300.0,0.00021916,2]
[387532445,1758759054788,-300.0,0.00021916,2]
[387532446,1758759054798,-763.76436714,0.00021916,2]
[387532447,1758759054808,-6227.0,0.00021917,2]
[387532448,1758759054817,-18898.0,0.00021917,2]
[387532449,1758759054826,-4177.0,0.00021917,2]
[387532450,1758759054834,-727.0,0.00021917,2]
[387532451,1758759054843,-1415.3653518,0.00021917,2]
[387532452,1758759054852,-373.44412269,0.00021917,2]
[387532453,1758759054861,-1276.79,0.00021917,2]
[387532454,1758759054870,-400.0,0.00021917,2]
[387532455,1758759054878,-928.6,0.00021917,2]
[387532456,1758759054885,-696.52,0.00021917,2]
[387532457,1758759054892,-400.0,0.00021917,2]
[387532458,1758759054899,-400.0,0.00021917,2]
[387532459,1758759054906,-508.4,0.00021917,2]
[387532460,1758759054914,-1141.42,0.00021917,2]
[387532461,1758759054920,-411.39,0.00021917,2]
[387532462,1758759054928,-400.0,0.00021917,2]
[387532463,1758759054936,-403.66,0.00021917,2]
[387532464,1758759054946,-400.0,0.00021917,2]
[387532465,1758759054956,-400.0,0.00021917,2]
[387532466,1758759054965,-400.0,0.00021917,2]
[387532467,1758759054975,-400.0,0.00021917,2]
[387532468,1758759054984,-822.71,0.00021917,2]
[387532469,1758759054994,-335.64210784,0.00021917,2]
[387532470,1758759055004,-400.0,0.00021917,2]
[387532471,1758759055013,-726.9,0.00021917,2]
[387532472,1758759055023,-598.53,0.00021917,2]
[387532473,1758759055037,-441.95,0.00021917,2]
[387532474,1758759055046,-1502.48,0.00021917,2]
[387532475,1758759055056,-1439.88,0.00021917,2]
[387532476,1758759055066,-400.0,0.00021917,2]
[387532477,1758759055075,-400.0,0.00021917,2]
[387532478,1758759055087,-400.0,0.00021917,2]
[387532479,1758759055097,-534.08,0.00021917,2]
[387532480,1758759055107,-576.61,0.00021917,2]
[387532481,1758759055116,-400.0,0.00021917,2]
[387532482,1758759055126,-1060.0,0.00021917,2]
[387532483,1758759055136,-808.45,0.00021917,2]
[387532484,1758759055145,-431.51,0.00021917,2]
[387532485,1758759055155,-400.0,0.00021917,2]
[387532486,1758759055165,-521.88,0.00021917,2]
[387532487,1758759055175,-400.0,0.00021917,2]
[387532488,1758759055185,-400.0,0.00021917,2]
[387532489,1758759055195,-400.0,0.00021917,2]
[387532490,1758759055204,-400.0,0.00021917,2]
[387532491,1758759055214,-444.32,0.00021917,2]
[387532492,1758759055223,-1780.28,0.00021917,2]
[387532493,1758759055233,-446.3,0.00021917,2]
[387532494,1758759055242,-400.0,0.00021917,2]
[387532495,1758759055252,-1247.88,0.00021917,2]
[387532496,1758759055261,-400.0,0.00021917,2]
[387532497,1758759055271,-734.55,0.00021917,2]
[387532498,1758759055280,-701.4,0.00021917,2]
[387532499,1758759055290,-400.0,0.00021917,2]
[387532500,1758759055299,-400.0,0.00021917,2]
[387532501,1758759055308,-400.0,0.00021917,2]
[387532502,1758759055318,-400.0,0.00021917,2]
[387532503,1758759055327,-400.0,0.00021917,2]
[387532504,1758759055337,-618.29,0.00021917,2]
[387532505,1758759055346,-400.0,0.00021917,2]
[387532506,1758759055356,-631.28,0.00021917,2]
[387532507,1758759055365,-400.0,0.00021917,2]
[387532508,1758759055374,-1139.67,0.00021917,2]
[387532509,1758759055383,-402.09,0.00021917,2]
[387532510,1758759055392,-1017.9,0.00021917,2]
[387532511,1758759055403,-619.31,0.00021917,2]
[387532512,1758759055412,-400.0,0.00021917,2]
[387532513,1758759055421,-437.01,0.00021917,2]
[387532514,1758759055430,-400.0,0.00021917,2]
[387532515,1758759055440,-1724.96,0.00021917,2]
[387532516,1758759055449,-400.0,0.00021917,2]
[387532517,1758759055459,-445.13,0.00021917,2]
[387532518,1758759055468,-400.0,0.00021917,2]
[387532519,1758759055478,-649.53,0.00021917,2]
[387532520,1758759055487,-400.0,0.00021917,2]
[387532521,1758759055496,-400.0,0.00021917,2]
[387532522,1758759055506,-1695.28,0.00021917,2]
[387532523,1758759055515,-400.0,0.00021917,2]
[387532524,1758759055634,-400.0,0.00021917,2]
[387532525,1758759055644,-1755.87,0.00021917,2]
[387532526,1758759055654,-400.0,0.00021917,2]
[387532527,1758759055663,-400.0,0.00021917,2]
[387532528,1758759055673,-400.0,0.00021917,2]
[387532529,1758759055682,-633.52,0.00021917,2]
[387532530,1758759055692,-1148.69,0.00021917,2]
[387532531,1758759055701,-400.0,0.00021917,2]
[387532532,1758759055711,-400.0,0.00021917,2]
[387532533,1758759055720,-478.06,0.00021917,2]
[387532534,1758759055729,-663.04,0.00021917,2]
[387532535,1758759055739,-1318.22,0.00021917,2]
[387532536,1758759055748,-400.0,0.00021917,2]
[387532537,1758759055758,-400.0,0.00021917,2]
[387532538,1758759055768,-761.97,0.00021917,2]
[387532539,1758759055777,-404.5,0.00021917,2]
[387532540,1758759055787,-469.47,0.00021917,2]
[387532541,1758759055796,-966.22,0.00021917,2]
[387532542,1758759055807,-966.22,0.00021917,2]
[387532543,1758759055816,-400.0,0.00021917,2]
[387532544,1758759055826,-823.56,0.00021917,2]
[387532545,1758759055835,-500.0,0.00021917,2]
[387532546,1758759055845,-500.0,0.00021917,2]
[387532547,1758759055855,-500.0,0.00021917,2]
[387532548,1758759055866,-781.42,0.00021917,2]
[387532549,1758759055876,-400.0,0.00021917,2]
[387532550,1758759055885,-154.740376,0.00021917,2]
[387532551,1758759055895,-400.0,0.00021917,2]
[387532552,1758759055904,-400.0,0.00021917,2]
[387532553,1758759055915,-787.49,0.00021917,2]
[387532554,1758759055924,-208.45202927,0.00021917,2]
[387532555,1758759055934,-400.0,0.00021917,2]
[387532556,1758759055943,-400.0,0.00021917,2]
[387532557,1758759055951,-400.0,0.00021917,2]
[387532558,1758759055959,-400.0,0.00021917,2]
[387532559,1758759055967,-400.0,0.00021917,2]
[387532560,1758759055975,-400.0,0.00021917,2]
[387532561,1758759055983,-400.0,0.00021917,2]
[387532562,1758759055991,-1657.55,0.00021917,2]
[387532563,1758759055998,-456.39233374,0.00021917,2]
[387532564,1758759056007,-400.0,0.00021917,2]
[387532565,1758759056017,-160.36253008,0.00021917,2]
[387532566,1758759056027,-1958.63,0.00021917,2]
[387532567,1758759056042,-400.0,0.00021917,2]
[387532568,1758759056051,-2155.81,0.00021917,2]
[387532569,1758759056061,-400.0,0.00021917,2]
[387532570,1758759056070,-627.86,0.00021917,2]
[387532571,1758759056079,-400.0,0.00021917,2]
[387532572,1758759056088,-400.0,0.00021917,2]
[387532573,1758759056097,-400.0,0.00021917,2]
[387532574,1758759056106,-400.0,0.00021917,2]
[387532575,1758759056116,-1183.7,0.00021917,2]
[387532576,1758759056127,-400.0,0.00021917,2]
[387532577,1758759056137,-400.0,0.00021917,2]
[387532578,1758759056146,-401.88584353,0.00021917,2]
[387532579,1758759056155,-1975.02,0.00021917,2]
[387532580,1758759056164,-667.82,0.00021917,2]
[387532581,1758759056175,-500.0,0.00021917,2]
[387532582,1758759056184,-500.0,0.00021917,2]
[387532583,1758759056193,-252.96665174,0.00021917,2]
[387532584,1758759056202,-389.32050158,0.00021917,2]
[387532585,1758759056212,-400.0,0.00021917,2]
[387532586,1758759056221,-564.19,0.00021917,2]
[387532587,1758759056230,-400.0,0.00021917,2]
[387532588,1758759056239,-458.65,0.00021917,2]
[387532589,1758759056248,-400.0,0.00021917,2]
[387532590,1758759056257,-400.0,0.00021917,2]
[387532591,1758759056266,-400.0,0.00021917,2]
[387532592,1758759056275,-479.06,0.00021917,2]
[387532593,1758759056284,-934.59,0.00021917,2]
[387532594,1758759056294,-400.0,0.00021917,2]
[387532595,1758759056303,-478.17,0.00021917,2]
[387532596,1758759056312,-458.25,0.00021917,2]
[387532597,1758759056322,-1306.39,0.00021917,2]
[387532598,1758759056331,-160.685293,0.00021917,2]
[387532599,1758759056340,-416.34745011,0.00021917,2]
[387532600,1758759056349,-793.67,0.00021917,2]
[387532601,1758759056358,-400.0,0.00021917,2]
[387532602,1758759056367,-798.27,0.00021917,2]
[387532603,1758759056376,-400.0,0.00021917,2]
[387532604,1758759056385,-400.0,0.00021917,2]
[387532605,1758759056395,-400.0,0.00021917,2]
[387532606,1758759056404,-400.0,0.00021917,2]
[387532607,1758759056414,-400.0,0.00021917,2]
[387532608,1758759056423,-400.98305001,0.00021917,2]
[387532609,1758759056432,-400.0,0.00021917,2]
[387532610,1758759056441,-400.0,0.00021917,2]
[387532611,1758759056451,-569.31,0.00021917,2]
[387532612,1758759056460,-400.0,0.00021917,2]
[387532613,1758759056469,-400.0,0.00021917,2]
[387532614,1758759056478,-968.34,0.00021917,2]
[387532615,1758759056487,-151.0,0.00021917,2]
[387532616,1758759056496,-151.0,0.00021917,2]
[387532617,1758759056505,-151.0,0.00021917,2]
[387532618,1758759056514,-151.0,0.00021917,2]
[387532619,1758759056523,-1242.93,0.00021917,2]
[387532620,1758759056533,-151.0,0.00021917,2]
[387532621,1758759056541,-151.0,0.00021917,2]
[387532622,1758759056551,-210.81709,0.00021917,2]
[387532623,1758759056560,-728.31,0.00021917,2]
[387532624,1758759056570,-400.0,0.00021917,2]
[387532625,1758759056579,-400.0,0.00021917,2]
[387532626,1758759056589,-1038.27,0.00021917,2]
[387532627,1758759056599,-151.0,0.00021917,2]
[387532628,1758759056608,-400.0,0.00021917,2]
[387532629,1758759056618,-151.0,0.00021917,2]
[387532630,1758759056627,-151.0,0.00021917,2]
[387532631,1758759056636,-400.0,0.00021917,2]
[387532632,1758759056647,-151.0,0.00021917,2]
[387532633,1758759056656,-151.0,0.00021917,2]
[387532634,1758759056666,-151.0,0.00021917,2]
[387532635,1758759056675,-400.0,0.00021917,2]
[387532636,1758759056685,-151.0,0.00021917,2]
[387532637,1758759056694,-152.022161,0.00021917,2]
[387532638,1758759056703,-400.0,0.00021917,2]
[387532639,1758759056713,-400.0,0.00021917,2]
[387532640,1758759056723,-785.68,0.00021917,2]
[387532641,1758759056732,-508.03,0.00021917,2]
[387532642,1758759056741,-400.0,0.00021917,2]
[387532643,1758759056751,-1835.27,0.00021917,2]
[387532644,1758759056760,-151.0,0.00021917,2]
[387532645,1758759056769,-400.0,0.00021917,2]
[387532646,1758759056779,-434.7127499,0.00021917,2]
[387532647,1758759056788,-1134.91,0.00021917,2]
[387532648,1758759056797,-483.69102198,0.00021917,2]
[387532649,1758759056807,-400.0,0.00021917,2]
[387532650,1758759056816,-400.0,0.00021917,2]
[387532651,1758759056825,-400.0,0.00021917,2]
[387532652,1758759056835,-400.0,0.00021917,2]
[387532653,1758759056845,-400.0,0.00021917,2]
[387532654,1758759056855,-531.18,0.00021917,2]
[387532655,1758759056864,-400.0,0.00021917,2]
[387532656,1758759056873,-400.0,0.00021917,2]
[387532657,1758759056883,-400.0,0.00021917,2]
[387532658,1758759056892,-510.69,0.00021917,2]
[387532659,1758759056902,-400.0,0.00021917,2]
[387532660,1758759056911,-500.0,0.00021917,2]
[387532661,1758759056921,-500.0,0.00021917,2]
[387532662,1758759056930,-500.0,0.00021917,2]
[387532663,1758759056939,-352.01470687,0.00021917,2]
[387532664,1758759056948,-1354.92,0.00021917,2]
[387532665,1758759056957,-636.79,0.00021917,2]
[387532666,1758759056966,-477.68,0.00021917,2]
[387532667,1758759056976,-501.64357316,0.00021917,2]
[387532668,1758759056985,-1672.63,0.00021917,2]
[387532669,1758759056995,-400.0,0.00021917,2]
[387532670,1758759057004,-400.0,0.00021917,2]
[387532671,1758759057013,-400.0,0.00021917,2]
[387532672,1758759057023,-400.0,0.00021917,2]
[387532673,1758759057033,-400.0,0.00021917,2]
[387532674,1758759057044,-400.0,0.00021917,2]
[387532675,1758759057053,-400.0,0.00021917,2]
[387532676,1758759057062,-400.0,0.00021917,2]
[387532677,1758759057071,-400.0,0.00021917,2]
[387532678,1758759057081,-536.78,0.00021917,2]
[387532679,1758759057091,-400.0,0.00021917,2]
[387532680,1758759057100,-400.0,0.00021917,2]
[387532681,1758759057111,-942.68,0.00021917,2]
[387532682,1758759057121,-1229.63,0.00021917,2]
[387532683,1758759057130,-712.44,0.00021917,2]
[387532684,1758759057140,-547.19,0.00021917,2]
[387532685,1758759057149,-402.61074767,0.00021917,2]
[387532686,1758759057158,-400.0,0.00021917,2]
[387532687,1758759057167,-400.0,0.00021917,2]
[387532688,1758759057178,-755.97,0.00021917,2]
[387532689,1758759057187,-400.0,0.00021917,2]
[387532690,1758759057197,-400.0,0.00021917,2]
[387532691,1758759057206,-400.0,0.00021917,2]
[387532692,1758759057215,-400.0,0.00021917,2]
[387532693,1758759057229,-728.65,0.00021917,2]
[387532694,1758759057239,-400.0,0.00021917,2]
[387532695,1758759057248,-769.52,0.00021917,2]
[387532696,1758759057257,-400.0,0.00021917,2]
[387532697,1758759057267,-151.0,0.00021917,2]
[387532698,1758759057276,-1929.12,0.00021917,2]
[387532699,1758759057286,-151.0,0.00021917,2]
[387532700,1758759057295,-400.0,0.00021917,2]
[387532701,1758759057305,-561.93,0.00021917,2]
[387532702,1758759057314,-400.0,0.00021917,2]
[387532703,1758759057324,-268.311365,0.00021917,2]
[387532704,1758759057334,-400.0,0.00021917,2]
[387532705,1758759057343,-400.0,0.00021917,2]
[387532706,1758759057352,-1411.94,0.00021917,2]
[387532707,1758759057362,-550.74,0.00021917,2]
[387532708,1758759057371,-151.0,0.00021917,2]
[387532709,1758759057380,-151.0,0.00021917,2]
[387532710,1758759057389,-196.198865,0.00021917,2]
[387532711,1758759057399,-400.0,0.00021917,2]
[387532712,1758759057408,-151.0,0.00021917,2]
[387532713,1758759057417,-400.0,0.00021917,2]
[387532714,1758759057427,-151.0,0.00021917,2]
[387532715,1758759057436,-400.0,0.00021917,2]
[387532716,1758759057446,-151.0,0.00021917,2]
[387532717,1758759057455,-151.0,0.00021917,2]
[387532718,1758759057464,-151.0,0.00021917,2]
[387532719,1758759057473,-400.0,0.00021917,2]
[387532720,1758759057483,-400.0,0.00021917,2]
[387532721,1758759057492,-400.0,0.00021917,2]
[387532722,1758759057501,-719.28,0.00021917,2]
[387532723,1758759057511,-400.0,0.00021917,2]
[387532724,1758759057520,-400.0,0.00021917,2]
[387532725,1758759057530,-1525.67,0.00021917,2]
[387532726,1758759057539,-1525.67,0.00021917,2]
[387532727,1758759057548,-1194.13,0.00021917,2]
[387532728,1758759057558,-2089.5,0.00021917,2]
[387532729,1758759057567,-1318.21,0.00021917,2]
[387532730,1758759057576,-151.0,0.00021917,2]
[387532731,1758759057586,-151.0,0.00021917,2]
[387532732,1758759057595,-165.017046,0.00021917,2]
[387532733,1758759057604,-443.42,0.00021917,2]
[387532734,1758759057614,-400.0,0.00021917,2]
[387532735,1758759057623,-400.0,0.00021917,2]
[387532736,1758759057633,-400.0,0.00021917,2]
[387532737,1758759057644,-2014.95,0.00021917,2]
[387532738,1758759057653,-1027.32,0.00021917,2]
[387532739,1758759057662,-400.0,0.00021917,2]
[387532740,1758759057671,-761.36,0.00021917,2]
[387532741,1758759057682,-400.0,0.00021917,2]
[387532742,1758759057692,-515.64,0.00021917,2]
[387532743,1758759057701,-411.06066275,0.00021917,2]
[387532744,1758759057711,-931.75,0.00021917,2]
[387532745,1758759057720,-623.45,0.00021917,2]
[387532746,1758759057729,-151.0,0.00021917,2]
[387532747,1758759057738,-151.0,0.00021917,2]
[387532748,1758759057748,-400.0,0.00021917,2]
[387532749,1758759057757,-602.11,0.00021917,2]
[387532750,1758759057767,-400.0,0.00021917,2]
[387532751,1758759057776,-400.0,0.00021917,2]
[387532752,1758759057786,-400.0,0.00021917,2]
[387532753,1758759057796,-400.0,0.00021917,2]
[387532754,1758759057806,-400.0,0.00021917,2]
[387532755,1758759057816,-1045.15,0.00021917,2]
[387532756,1758759057827,-1096.5,0.00021917,2]
[387532757,1758759057836,-400.0,0.00021917,2]
[387532758,1758759057846,-961.49,0.00021917,2]
[387532759,1758759057855,-400.0,0.00021917,2]
[387532760,1758759057865,-400.0,0.00021917,2]
[387532761,1758759057875,-400.0,0.00021917,2]
[387532762,1758759057884,-400.0,0.00021917,2]
[387532763,1758759057894,-400.0,0.00021917,2]
[387532764,1758759057903,-400.0,0.00021917,2]
[387532765,1758759057913,-1265.37,0.00021917,2]
[387532766,1758759057923,-400.0,0.00021917,2]
[387532767,1758759057933,-400.0,0.00021917,2]
[387532768,1758759057944,-689.07,0.00021917,2]
[387532769,1758759057954,-416.67,0.00021917,2]
[387532770,1758759057963,-512.08,0.00021917,2]
[387532771,1758759057973,-731.54,0.00021917,2]
[387532772,1758759057985,-534.96,0.00021917,2]
[387532773,1758759057996,-463.01759097,0.00021917,2]
[387532774,1758759058007,-400.0,0.00021917,2]
[387532775,1758759058017,-400.0,0.00021917,2]
[387532776,1758759058027,-607.09,0.00021917,2]
[387532777,1758759058037,-400.0,0.00021917,2]
[387532778,1758759058050,-400.0,0.00021917,2]
[387532779,1758759058061,-400.0,0.00021917,2]
[387532780,1758759058071,-400.0,0.00021917,2]
[387532781,1758759058083,-401.23338206,0.00021917,2]
[387532782,1758759058094,-500.0,0.00021917,2]
[387532783,1758759058104,-563.74010058,0.00021917,2]
[387532784,1758759058116,-448.01,0.00021917,2]
[387532785,1758759058128,-400.0,0.00021917,2]
[387532786,1758759058138,-400.0,0.00021917,2]
[387532787,1758759058148,-400.0,0.00021917,2]
[387532788,1758759058158,-1000.0,0.00021917,2]
[387532789,1758759058168,-277.061872,0.00021917,2]
[387532790,1758759058178,-978.74,0.00021917,2]
[387532791,1758759058188,-1004.21168962,0.00021917,2]
[387532792,1758759058198,-400.0,0.00021917,2]
[387532793,1758759058207,-500.0,0.00021917,2]
[387532794,1758759058217,-854.54,0.00021917,2]
[387532795,1758759058227,-400.0,0.00021917,2]
[387532796,1758759058238,-551.42,0.00021917,2]
[387532797,1758759058248,-1812.04,0.00021917,2]
[387532798,1758759058260,-1623.47,0.00021917,2]
[387532799,1758759058271,-649.49,0.00021917,2]
[387532800,1758759058280,-1018.97,0.00021917,2]
[387532801,1758759058291,-400.0,0.00021917,2]
[387532802,1758759058301,-400.75369032,0.00021917,2]
[387532803,1758759058312,-400.0,0.00021917,2]
[387532804,1758759058322,-400.0,0.00021917,2]
[387532805,1758759058332,-400.0,0.00021917,2]
[387532806,1758759058342,-400.0,0.00021917,2]
[387532807,1758759058353,-400.0,0.00021917,2]
[387532808,1758759058362,-2297.9,0.00021917,2]
[387532809,1758759058372,-1808.06,0.00021917,2]
[387532810,1758759058382,-480.38,0.00021917,2]
[387532811,1758759058392,-1047.07,0.00021917,2]
[387532812,1758759058402,-528.74,0.00021917,2]
[387532813,1758759058411,-463.94,0.00021917,2]
[387532814,1758759058421,-400.0,0.00021917,2]
[387532815,1758759058431,-400.0,0.00021917,2]
[387532816,1758759058442,-277.035845,0.00021917,2]
[387532817,1758759058451,-400.0,0.00021917,2]
[387532818,1758759058461,-400.0,0.00021917,2]
[387532819,1758759058471,-400.0,0.00021917,2]